bitfinex-derivatives/quotes_ETHF0:USTF0_20230403
["timestamp","ask_amount","ask_price","bid_price","bid_amount"]
[1680540379373,0.58266519,1796.1,1796.0,1.104]
[1680540379374,0.87395434,1796.1,1796.0,1.104]
[1680540379572,1.45658364,1796.1,1796.0,1.104]
[1680540379774,0.5826293,1796.1,1796.0,1.104]
[1680540380275,1.45658616,1796.1,1796.0,1.104]
[1680540380779,0.58263182,1796.1,1796.0,1.104]
[1680540381475,0.87395434,1796.1,1796.0,1.104]
[1680540382280,0.87395434,1796.1,1796.0,1.113]
[1680540384171,4.08175434,1796.1,1796.0,1.113]
[1680540389388,0.87395434,1796.1,1796.0,1.113]
[1680540389587,1.45698328,1796.1,1796.0,1.113]
[1680540390184,0.87395434,1796.1,1796.0,1.113]
[1680540390483,0.58302841,1796.1,1796.0,4.3208]
[1680540390692,1.45698275,1796.1,1796.0,4.3208]
[1680540390994,1.45697556,1796.1,1796.0,4.3208]
[1680540391590,0.87395434,1796.1,1796.0,4.3208]
[1680540391785,1.45710029,1796.1,1796.0,4.3208]
[1680540391989,0.87395434,1796.1,1796.0,4.3208]
[1680540396997,1.16780384,1796.2,1796.0,4.3208]
[1680540397199,1.16780384,1796.2,1796.1,1.108]
[1680540399291,2.14641453,1796.3,1796.1,1.108]
[1680540399492,1.16701755,1796.2,1796.1,1.108]
[1680540400500,2.45603116,1796.3,1796.1,1.108]
[1680540400700,1.16704862,1796.2,1796.1,1.108]
[1680540402104,3.14641242,1796.3,1796.1,0.835]
[1680540402402,2.45603116,1796.3,1796.2,0.83]
[1680540402600,3.14641998,1796.3,1796.2,0.83]
[1680540403199,2.1493587,1796.3,1796.2,0.83]
[1680540403398,1.69038882,1796.3,1796.1,0.835]
[1680540403603,1.45900048,1796.2,1796.1,0.835]
[1680540403803,4.66680048,1796.2,1796.1,0.835]
[1680540403997,5.35721026,1796.2,1796.1,0.835]
[1680540405316,4.66680048,1796.2,1796.1,0.835]
[1680540405496,5.35720237,1796.2,1796.1,0.835]
[1680540406000,4.66680048,1796.2,1796.1,0.835]
[1680540406198,5.35720186,1796.2,1796.1,0.835]
[1680540406602,2.14940186,1796.2,1796.1,0.835]
[1680540406904,1.45900048,1796.2,1796.1,0.835]
[1680540407496,2.14940395,1796.2,1796.1,0.835]
[1680540408712,5.35720395,1796.2,1796.1,0.835]
[1680540409403,4.66680048,1796.2,1796.1,0.835]
[1680540409607,5.35719995,1796.2,1796.1,0.835]
[1680540411403,4.66680048,1796.2,1796.1,0.835]
[1680540411703,5.35719993,1796.2,1796.1,0.835]
[1680540412107,4.66680048,1796.2,1796.1,0.835]
[1680540412306,1.45900048,1796.2,1796.1,0.835]
[1680540416624,5.3571998,1796.2,1796.1,0.835]
[1680540418212,4.66680048,1796.2,1796.1,0.835]
[1680540418409,5.35719436,1796.2,1796.1,0.835]
[1680540418810,4.66680048,1796.2,1796.1,0.835]
[1680540420116,5.3571984,1796.2,1796.1,0.835]
[1680540420323,4.66680048,1796.2,1796.1,0.835]
[1680540422120,4.66680048,1796.2,1796.1,0.83101184]
[1680540424024,0.831,1796.1,1795.8,1.16842315]
[1680540424214,0.831,1796.1,1795.6,1.16842315]
[1680540424215,4.8778,1795.9,1795.6,1.16842315]
[1680540424526,5.21025102,1795.7,1795.5,1.16842315]
[1680540424722,0.87558828,1795.6,1795.5,1.16842315]
[1680540425118,0.87558828,1795.6,1795.4,1.45851303]
[1680540425119,1.16745102,1795.6,1795.4,1.16842315]
[1680540425314,5.08350306,1795.5,1795.4,1.16842315]
[1680540425716,4.79073591,1795.5,1795.3,0.835]
[1680540426221,5.61773591,1795.5,1795.2,1.16842315]
[1680540426421,3.2078,1795.3,1795.2,1.16842315]
[1680540427723,3.2078,1795.3,1795.1,1.16842315]
[1680540429425,3.2078,1795.3,1795.0,3.13570168]
[1680540429426,1.114,1795.2,1795.0,1.16842315]
[1680540429632,5.3218,1795.1,1794.6,2.28242315]
[1680540429822,3.2078,1794.9,1794.6,2.28242315]
[1680540430129,3.2078,1794.7,1794.5,1.16842315]
[1680540430320,1.0,1794.8,1794.6,1.16842315]
[1680540430522,4.2078,1794.8,1794.5,1.16842315]
[1680540430926,3.2078,1794.8,1794.6,1.16842315]
[1680540431126,1.107,1794.9,1794.6,1.16842315]
[1680540431634,3.2078,1795.0,1794.8,1.108]
[1680540432627,4.3218,1795.0,1794.6,1.108]
[1680540432824,3.2078,1794.8,1794.6,1.108]
[1680540433025,1.114,1795.0,1794.6,1.108]
[1680540433327,3.2078,1795.1,1794.7,1.114]
[1680540433725,3.2078,1794.9,1794.5,2.114]
[1680540433929,1.114,1795.0,1794.5,1.114]
[1680540433930,3.2078,1794.7,1794.5,1.114]
[1680540434233,4.3218,1795.0,1794.5,2.114]
[1680540434424,3.2078,1794.8,1794.5,2.114]
[1680540434931,4.3218,1795.0,1794.5,1.114]
[1680540435131,1.0,1794.9,1794.5,1.114]
[1680540435434,3.2078,1794.8,1794.5,1.114]
[1680540436333,3.2078,1794.6,1794.4,0.57037549]
[1680540436529,3.2078,1794.6,1794.2,2.16842315]
[1680540436728,3.2078,1794.6,1794.1,2.16842315]
[1680540437028,3.2078,1794.8,1794.4,1.114]
[1680540437731,3.2078,1794.6,1794.2,1.114]
[1680540442034,3.2078,1794.4,1794.1,1.66323041]
[1680540445338,4.3218,1794.6,1794.1,1.66323041]
[1680540445539,4.3218,1794.6,1794.1,2.66323041]
[1680540446843,4.3218,1794.6,1794.2,1.0]
[1680540447934,1.107,1794.8,1794.3,1.108]
[1680540447935,4.3218,1794.8,1794.3,1.108]
[1680540448336,3.2078,1794.8,1794.5,1.114]
[1680540450434,4.3218,1794.8,1794.3,1.113]
[1680540451042,4.3218,1794.8,1794.4,1.0]
[1680540452139,3.2078,1794.8,1794.4,1.108]
[1680540453543,3.2078,1794.6,1794.3,1.114]
[1680540453748,4.3218,1794.8,1794.3,1.114]
[1680540454149,3.2078,1795.0,1794.2,9.7688]
[1680540454355,3.76264312,1795.4,1794.9,1.113]
[1680540454546,3.2078,1795.4,1795.3,1.114]
[1680540456243,3.2078,1795.4,1795.1,1.114]
[1680540458241,3.2078,1795.2,1795.1,1.114]
[1680540459049,1.0,1795.5,1795.1,1.114]
[1680540459346,3.2078,1795.4,1795.1,1.114]
[1680540461253,3.2078,1795.2,1794.9,1.114]
[1680540461845,4.3218,1795.0,1794.8,0.56389476]
[1680540462043,3.2078,1795.0,1794.7,1.114]
[1680540463857,4.3218,1795.0,1794.5,16.68787883]
[1680540464056,1.0,1795.1,1794.5,1.65587883]
[1680540464057,4.3218,1794.8,1794.5,1.65587883]
[1680540464455,4.3218,1794.8,1794.4,1.114]
[1680540464756,3.2078,1794.8,1794.6,1.108]
[1680540468842,4.3218,1794.8,1794.4,2.28242315]
[1680540469059,1.0,1794.7,1794.4,2.28242315]
[1680540469854,4.3218,1794.8,1794.4,2.28242315]
[1680540470052,1.0,1794.7,1794.4,2.28242315]
[1680540470455,4.3218,1794.8,1794.4,2.28242315]
[1680540471557,3.2078,1794.8,1794.6,1.113]
[1680540474959,4.3218,1794.8,1794.4,2.28242315]
[1680540475157,3.2078,1794.6,1794.4,2.28242315]
[1680540475357,4.3218,1794.8,1794.5,1.16842315]
[1680540475558,3.2078,1794.6,1794.5,1.16842315]
[1680540476155,4.3218,1794.8,1794.5,1.16842315]
[1680540476458,3.2078,1794.6,1794.5,1.16842315]
[1680540478761,3.2078,1794.8,1794.5,1.16842315]
[1680540481165,3.2078,1794.8,1794.6,1.16842315]
[1680540481364,3.2078,1794.8,1794.6,2.28242315]
[1680540481557,3.2078,1794.8,1794.6,1.114]
[1680540482068,3.2078,1794.8,1794.5,3.28142315]
[1680540483260,3.2078,1794.8,1794.6,1.16842315]
[1680540483466,3.2078,1794.8,1794.5,3.28142315]
[1680540483667,3.2078,1794.8,1794.5,2.28142315]
[1680540485162,4.3188,1794.8,1794.5,1.16842315]
[1680540485358,3.2078,1794.6,1794.5,1.16842315]
[1680540485564,1.111,1794.8,1794.5,1.16842315]
[1680540485759,4.2078,1794.9,1794.5,2.27642315]
[1680540485958,3.2078,1794.7,1794.5,2.27642315]
[1680540486162,3.2078,1794.9,1794.5,2.27642315]
[1680540486468,3.2078,1794.7,1794.5,2.27642315]
[1680540488370,3.2078,1794.9,1794.5,2.27642315]
[1680540488572,4.2078,1794.9,1794.5,2.27642315]
[1680540488765,3.2078,1794.7,1794.5,2.27642315]
[1680540492069,3.2078,1794.7,1794.5,1.16842315]
[1680540492671,0.58293591,1795.0,1794.6,1.113]
[1680540492867,1.45863897,1795.1,1794.9,1.113]
[1680540493069,0.58293591,1795.1,1795.0,1.114]
[1680540493264,1.45863897,1795.2,1795.0,1.114]
[1680540493571,3.79073591,1795.1,1794.9,1.108]
[1680540493776,0.58293591,1795.2,1794.9,1.108]
[1680540493972,1.45863897,1795.2,1794.9,1.108]
[1680540494173,0.58293591,1795.2,1794.9,1.108]
[1680540494478,3.2078,1795.1,1794.9,1.108]
[1680540494670,3.20430204,1795.1,1794.9,1.108]
[1680540494873,0.58293591,1795.2,1794.9,1.108]
[1680540495370,1.58293591,1795.2,1794.9,1.108]
[1680540495569,3.2078,1795.1,1794.8,1.16842315]
[1680540495772,1.0,1795.0,1794.7,0.55143741]
[1680540495973,1.0,1795.0,1794.7,1.16842315]
[1680540496172,1.0,1795.0,1794.7,2.28242315]
[1680540496380,4.79073591,1795.1,1794.7,2.28242315]
[1680540496680,1.0,1795.0,1794.7,2.28242315]
[1680540496975,2.45863897,1795.2,1794.9,1.114]
[1680540497781,3.79073591,1795.1,1794.9,1.114]
[1680540497976,1.0,1795.0,1794.9,1.114]
[1680540499575,4.79073591,1795.1,1794.9,1.114]
[1680540500679,0.58293591,1795.1,1794.9,1.114]
[1680540500879,0.58293591,1795.2,1794.9,1.114]
[1680540501072,0.58293591,1795.2,1795.1,1.114]
[1680540501381,4.66643897,1795.3,1795.1,1.114]
[1680540501585,0.58293591,1795.2,1795.1,1.114]
[1680540501784,4.66643897,1795.3,1795.1,1.114]
[1680540502084,4.66643897,1795.3,1795.2,1.114]
[1680540502284,3.79073591,1795.3,1795.2,1.114]
[1680540502480,0.58293591,1795.3,1795.2,1.114]
[1680540503186,3.79073591,1795.3,1795.2,1.114]
[1680540503380,1.45863897,1795.3,1795.2,1.114]
[1680540503682,0.58293591,1795.3,1795.2,1.114]
[1680540505389,3.79073591,1795.3,1795.2,1.114]
[1680540505690,1.45846456,1795.3,1795.2,1.114]
[1680540506089,0.5827615,1795.3,1795.2,1.114]
[1680540506489,4.66626456,1795.3,1795.2,1.114]
[1680540507990,3.7905615,1795.3,1795.2,1.114]
[1680540508188,4.08350306,1795.3,1795.0,1.114]
[1680540508387,1.58261309,1795.2,1795.0,1.114]
[1680540509087,3.2078,1795.1,1795.0,1.114]
[1680540509793,1.58261309,1795.2,1795.0,1.114]
[1680540509993,4.66611615,1795.3,1795.0,1.114]
[1680540510199,0.58261309,1795.3,1795.0,1.114]
[1680540510795,0.58261309,1795.3,1795.0,2.10665276]
[1680540511197,3.79041309,1795.3,1795.0,1.10665276]
[1680540513809,3.79041309,1795.3,1795.1,1.0]
[1680540514001,0.58261309,1795.3,1795.2,1.113]
[1680540515601,1.45831615,1795.4,1795.2,1.113]
[1680540515794,0.58261309,1795.4,1795.2,1.113]
[1680540515995,3.79041309,1795.3,1795.0,1.114]
[1680540521504,1.45831615,1795.4,1795.2,1.108]
[1680540521706,0.58261309,1795.4,1795.2,1.108]
[1680540522101,3.79041309,1795.5,1795.3,1.113]
[1680540523005,3.79041309,1795.5,1795.3,2.113]
[1680540523597,3.79041309,1795.5,1795.3,1.113]
[1680540523797,3.79041309,1795.5,1795.3,2.113]
[1680540524104,3.79041309,1795.5,1795.3,1.113]
[1680540529302,3.79041309,1795.5,1795.2,1.113]
[1680540531604,0.58261309,1795.5,1795.2,1.113]
[1680540531808,3.79041309,1795.7,1795.4,1.113]
[1680540532108,3.2078,1795.7,1795.6,1.114]
[1680540532799,3.79041309,1795.7,1795.6,1.114]
[1680540533797,3.2078,1795.7,1795.6,1.114]
[1680540534702,3.79041309,1795.7,1795.6,1.114]
[1680540535003,3.2078,1795.7,1795.6,1.114]
[1680540535399,3.79041309,1795.7,1795.6,1.114]
[1680540535908,3.2078,1795.7,1795.6,1.114]
[1680540536301,0.58261309,1795.8,1795.6,1.114]
[1680540536499,0.58261309,1795.8,1795.7,1.114]
[1680540536703,0.58261309,1795.9,1795.7,1.114]
[1680540537003,0.58261309,1795.9,1795.8,1.113]
[1680540537214,3.79041309,1795.9,1795.8,1.113]
[1680540537509,3.79041309,1795.9,1795.8,1.108]
[1680540539109,5.19750306,1795.9,1795.4,1.108]
[1680540539311,3.78964338,1795.7,1795.4,1.108]
[1680540539509,0.58184338,1795.8,1795.6,1.114]
[1680540539710,0.58184338,1795.7,1795.6,1.114]
[1680540539907,1.58184338,1795.7,1795.5,1.113]
[1680540540212,0.58184338,1795.7,1795.5,1.113]
[1680540540413,1.58184338,1795.7,1795.5,1.113]
[1680540540810,0.58184338,1795.7,1795.5,1.113]
[1680540541113,4.66534644,1795.8,1795.5,1.113]
[1680540541314,0.58184338,1795.7,1795.5,1.113]
[1680540542109,1.58184338,1795.7,1795.5,1.113]
[1680540542308,3.2078,1795.6,1795.5,1.113]
[1680540544917,0.58184338,1795.7,1795.5,1.114]
[1680540545218,3.78964338,1795.8,1795.5,1.114]
[1680540545920,4.66534644,1795.8,1795.5,1.114]
[1680540546313,0.58184338,1795.8,1795.7,1.114]
[1680540546610,1.45754644,1795.9,1795.7,1.114]
[1680540547611,0.58184338,1795.9,1795.7,1.114]
[1680540549109,1.45754644,1795.9,1795.7,1.114]
[1680540549317,0.58184338,1795.8,1795.7,1.114]
[1680540551616,0.58184338,1795.8,1795.5,1.114]
[1680540551818,3.78964338,1795.7,1795.5,1.114]
[1680540554620,3.78964338,1795.8,1795.6,1.114]
[1680540554815,3.78964338,1795.8,1795.7,1.114]
[1680540555318,0.58184338,1795.8,1795.7,1.114]
[1680540562626,0.58184338,1796.0,1795.8,1.114]
[1680540562830,1.45754644,1796.0,1795.9,1.114]
[1680540563020,0.87570306,1796.0,1795.9,1.114]
[1680540566331,2.16745102,1796.0,1795.7,1.65805325]
[1680540566534,0.58234252,1795.8,1795.7,1.108]
[1680540566834,1.58234252,1795.8,1795.7,1.108]
[1680540567234,0.58234252,1795.8,1795.7,1.108]
[1680540568539,1.58234252,1795.8,1795.7,1.108]
[1680540568930,2.45585629,1795.8,1795.7,1.108]
[1680540569435,1.45585629,1795.8,1795.7,1.108]
[1680540570330,0.87351377,1795.8,1795.7,1.108]
[1680540571438,0.58248278,1795.8,1795.7,1.108]
[1680540571830,1.45599655,1795.8,1795.7,1.108]
[1680540572027,1.45599655,1795.8,1795.7,1.114]
[1680540573129,0.87351377,1795.8,1795.7,1.114]
[1680540579846,0.87351377,1795.8,1795.7,2.223]
[1680540580036,0.87466017,1796.0,1795.7,6.88931303]
[1680540580242,0.87466017,1796.0,1795.9,1.114]
[1680540580947,0.87466017,1796.0,1795.9,2.114]
[1680540581143,0.87466017,1796.0,1795.9,1.114]
[1680540586251,2.62686594,1796.2,1795.9,2.22]
[1680540586443,0.8741676,1796.2,1796.1,1.113]
[1680540586746,0.8742427,1796.3,1796.2,1.0]
[1680540586950,0.8742427,1796.3,1796.2,2.114]
[1680540587248,0.8742427,1796.4,1796.2,2.114]
[1680540587450,0.8742427,1796.4,1796.3,1.114]
[1680540589651,0.8742427,1796.4,1795.9,4.37555384]
[1680540589850,0.8742427,1796.4,1796.1,1.108]
[1680540589851,0.87303617,1796.3,1796.1,1.108]
[1680540590259,1.87303617,1796.3,1796.1,1.108]
[1680540591854,5.08083617,1796.3,1796.1,1.108]
[1680540592056,5.08083617,1796.3,1796.2,1.108]
[1680540593163,4.2078,1796.3,1796.2,1.108]
[1680540593361,5.08065218,1796.3,1796.2,1.108]
[1680540593656,5.08059922,1796.3,1796.2,1.108]
[1680540593858,4.2078,1796.3,1796.2,1.108]
[1680540594255,5.08058514,1796.3,1796.2,1.108]
[1680540594755,4.2078,1796.3,1796.2,1.108]
[1680540594964,3.2078,1796.3,1796.2,1.108]
[1680540595159,4.37525102,1796.3,1796.0,1.114]
[1680540595464,3.2078,1796.1,1796.0,1.114]
[1680540595852,1.87278672,1796.2,1796.0,1.114]
[1680540596460,0.87278672,1796.1,1796.0,1.114]
[1680540597066,5.19458672,1796.1,1795.6,1.114]
[1680540597266,1.87252276,1796.0,1795.6,1.114]
[1680540597465,3.2078,1795.9,1795.6,1.114]
[1680540597970,1.0,1795.8,1795.6,1.114]
[1680540598375,4.2078,1795.9,1795.6,1.114]
[1680540598965,3.2078,1795.9,1795.6,1.114]
[1680540603979,3.2078,1795.9,1795.8,1.113]
[1680540604373,0.87252276,1796.0,1795.8,1.113]
[1680540605972,0.87252276,1796.0,1795.9,0.43638797]
[1680540610978,1.87252276,1796.0,1795.9,0.43638797]
[1680540612679,0.87252276,1796.0,1795.9,0.43638797]
[1680540612880,1.87252276,1796.0,1795.9,0.43638797]
[1680540614080,1.87252276,1796.0,1795.9,0.43638797]
[1680540614279,0.87252276,1796.0,1795.9,0.43638797]
[1680540615781,3.37945102,1796.0,1795.4,1.16775384]
[1680540615982,4.3188,1795.6,1795.2,4.37555384]
[1680540616285,5.19136997,1795.6,1795.2,3.2078]
[1680540616481,1.0,1795.5,1795.1,2.28175384]
[1680540616781,3.2078,1795.4,1795.1,1.114]
[1680540620985,3.75933839,1795.4,1795.1,1.114]
[1680540621978,3.75933839,1795.4,1794.9,2.16775384]
[1680540622172,3.75933839,1795.4,1795.2,1.113]
[1680540623178,3.75933839,1795.4,1795.0,1.114]
[1680540623384,0.05275464,1795.3,1795.1,1.114]
[1680540623581,1.05275464,1795.3,1795.1,1.114]
[1680540623884,3.75933839,1795.4,1795.1,1.114]
[1680540626694,3.2078,1795.4,1794.8,7.07749723]
[1680540626992,3.2078,1795.4,1794.8,4.90974339]
[1680540627192,3.2078,1795.4,1795.1,1.108]
[1680540627890,4.3218,1795.2,1794.8,0.56953538]
[1680540628083,3.2078,1795.0,1794.6,1.7188495]
[1680540628392,3.2078,1795.0,1794.7,1.108]
[1680540628591,3.2078,1795.0,1794.7,2.108]
[1680540628784,3.2078,1795.0,1794.7,1.108]
[1680540628991,0.27607834,1794.9,1794.7,1.108]
[1680540631991,0.27607834,1794.9,1794.8,1.114]
[1680540633190,0.27607834,1794.9,1794.8,2.114]
[1680540633687,3.2078,1795.2,1794.8,2.114]
[1680540633991,3.2078,1795.2,1794.9,1.114]
[1680540634294,3.2078,1795.4,1795.1,1.114]
[1680540634989,4.3218,1795.4,1795.0,1.114]
[1680540635590,3.2078,1795.2,1795.0,1.114]
[1680540637291,5.3218,1795.4,1795.0,1.114]
[1680540637486,4.3218,1795.4,1795.0,1.114]
[1680540637790,3.2078,1795.2,1795.0,1.114]
[1680540638091,4.3218,1795.4,1795.0,1.114]
[1680540639087,3.2078,1795.2,1795.0,1.114]
[1680540642192,3.2078,1795.2,1794.9,1.114]
[1680540642795,0.1805516,1795.1,1794.9,1.114]
[1680540642993,3.2078,1795.2,1794.9,1.114]
[1680540644592,3.2078,1795.0,1794.7,5.48955384]
[1680540644797,3.2078,1795.0,1794.7,4.3218]
[1680540644996,4.3218,1795.0,1794.7,3.2078]
[1680540645896,1.114,1795.0,1794.7,3.2078]
[1680540646489,4.3218,1795.0,1794.7,3.2078]
[1680540646898,4.3218,1795.0,1794.6,1.16775384]
[1680540648194,4.3218,1795.0,1794.5,6.05097923]
[1680540648402,3.2078,1794.6,1794.5,1.16775384]
[1680540648599,3.2078,1794.6,1794.3,1.114]
[1680540648600,3.2078,1794.6,1794.3,2.28175384]
[1680540648803,3.2078,1794.6,1794.3,1.114]
[1680540649003,1.114,1794.8,1794.3,1.114]
[1680540649198,3.2078,1794.7,1794.3,2.28175384]
[1680540649394,1.67224415,1794.8,1794.3,5.48955384]
[1680540649896,3.2078,1794.7,1794.3,5.48955384]
[1680540650096,1.67224415,1794.8,1794.3,5.48955384]
[1680540650301,1.67224415,1794.8,1794.3,4.3218]
[1680540650605,3.2078,1794.7,1794.3,1.114]
[1680540651794,3.2078,1794.7,1794.3,4.3218]
[1680540651995,0.55824415,1794.8,1794.7,1.111]
[1680540652195,4.08036997,1795.4,1794.7,2.225]
[1680540652401,3.2078,1795.4,1795.2,1.114]
[1680540653200,0.55795484,1795.5,1795.2,1.114]
[1680540653394,3.2078,1795.4,1795.2,1.114]
[1680540653597,1.0,1795.5,1795.2,1.114]
[1680540653904,3.2078,1795.4,1795.2,1.114]
[1680540657399,0.87256997,1795.5,1795.3,1.114]
[1680540657597,0.87256997,1795.8,1795.5,1.109]
[1680540657800,0.87256997,1795.9,1795.7,1.108]
[1680540658200,4.08036997,1796.0,1795.8,1.113]
[1680540658507,4.08036997,1796.0,1795.9,1.114]
[1680540658709,4.08036997,1796.0,1795.7,1.114]
[1680540661108,0.87256997,1795.9,1795.7,1.114]
[1680540662300,1.87256997,1795.9,1795.7,1.114]
[1680540662500,0.87256997,1795.9,1795.7,1.114]
[1680540663500,4.08036997,1796.0,1795.7,1.114]
[1680540666108,3.2078,1796.0,1795.7,1.114]
[1680540666408,4.08036997,1796.0,1795.7,1.114]
[1680540667010,3.2078,1796.0,1795.7,1.114]
[1680540672812,3.2078,1796.0,1795.8,0.28480073]
[1680540674911,0.87256997,1796.2,1795.9,1.114]
[1680540675117,0.544189,1796.3,1796.1,1.114]
[1680540675414,3.2078,1796.4,1796.1,1.114]
[1680540676204,3.76350994,1796.4,1796.1,1.114]
[1680540676715,3.2078,1796.4,1796.1,1.114]
[1680540679616,3.2078,1796.4,1796.1,4.3218]
[1680540680510,0.55858343,1796.5,1796.1,4.3218]
[1680540680714,11.75470875,1796.6,1796.1,4.3218]
[1680540680915,4.3218,1796.6,1796.1,4.3218]
[1680540681110,4.3218,1796.6,1796.4,1.108]
[1680540681317,3.2078,1796.6,1796.4,1.108]
[1680540681613,3.7619731,1796.6,1796.4,1.108]
[1680540682015,3.7619731,1796.6,1796.3,1.114]
[1680540682608,0.5541731,1796.6,1796.3,1.114]
[1680540682821,6.87896343,1796.8,1796.3,1.114]
[1680540683022,5.76496343,1796.8,1796.5,1.114]
[1680540683217,6.31714685,1796.8,1796.5,1.114]
[1680540683409,4.63255339,1796.8,1796.5,1.114]
[1680540686011,4.63255339,1796.8,1796.7,1.114]
[1680540686012,0.55218342,1796.8,1796.7,1.114]
[1680540686219,4.8112,1797.1,1796.7,1.114]
[1680540686220,0.87256997,1797.1,1796.7,4.3218]
[1680540686419,6.57506114,1797.3,1797.0,1.114]
[1680540686729,4.08036997,1797.4,1797.0,1.114]
[1680540687421,3.2078,1797.4,1797.3,1.114]
[1680540687620,3.2078,1797.4,1797.3,1.00260001]
[1680540688123,3.2078,1797.4,1797.1,1.114]
[1680540688329,3.2078,1797.4,1797.3,1.1274139]
[1680540688516,5.19436997,1797.4,1796.9,1.114]
[1680540688722,3.2078,1797.2,1797.0,1.12673516]
[1680540688924,6.19436997,1797.4,1797.0,1.12673516]
[1680540689129,1.0,1797.3,1797.0,1.12673516]
[1680540689630,1.0,1797.3,1797.0,2.23973516]
[1680540690231,5.08036997,1797.4,1797.0,5.44753516]
[1680540690232,3.2078,1797.4,1797.0,5.44753516]
[1680540690629,3.2078,1797.4,1797.0,2.23973516]
[1680540690832,4.2078,1797.4,1797.0,2.23973516]
[1680540691132,1.0,1797.3,1797.0,2.23973516]
[1680540692130,4.2078,1797.4,1797.1,1.114]
[1680540692532,3.2078,1797.4,1797.1,1.114]
[1680540694336,1.0,1797.3,1797.1,1.114]
[1680540694635,1.0,1797.3,1797.0,1.12673516]
[1680540694836,1.0,1797.3,1796.9,1.114]
[1680540695035,3.2078,1797.2,1796.9,1.114]
[1680540700240,3.78595872,1797.2,1796.9,1.114]
[1680540700536,2.45072869,1797.3,1796.9,1.114]
[1680540700731,1.45072869,1797.3,1796.9,1.114]
[1680540700932,0.57815872,1797.3,1796.9,1.114]
[1680540701332,0.57815872,1797.3,1797.1,1.114]
[1680540702134,0.87256997,1797.3,1797.2,1.114]
[1680540702435,1.45140026,1797.3,1797.2,1.114]
[1680540702836,1.45140026,1797.3,1797.2,2.24266512]
[1680540703039,0.87256997,1797.3,1797.2,2.24266512]
[1680540703836,1.98656997,1797.3,1796.9,1.114]
[1680540704049,3.78652853,1797.1,1797.0,0.98730341]
[1680540711445,0.57872853,1797.1,1797.0,2.10130341]
[1680540711939,1.4512985,1797.2,1797.0,2.10130341]
[1680540712442,0.57872853,1797.2,1797.0,2.10130341]
[1680540712839,0.57872853,1797.2,1797.1,1.0]
[1680540713040,0.57872853,1797.2,1797.1,1.98791631]
[1680540713241,0.57872853,1797.2,1797.1,0.98791631]
[1680540715044,2.4512985,1797.2,1796.9,1.108]
[1680540715239,0.57872853,1797.1,1796.9,1.108]
[1680540715857,5.7730985,1797.1,1796.7,1.114]
[1680540716151,3.2078,1796.9,1796.7,1.114]
[1680540717448,3.78652853,1796.9,1796.7,1.114]
[1680540717940,3.78652853,1796.9,1796.8,0.69971272]
[1680540718649,0.57872853,1797.0,1796.8,1.81371272]
[1680540719047,0.57872853,1796.9,1796.8,1.81371272]
[1680540721853,1.4512985,1796.9,1796.8,1.81371272]
[1680540723145,0.87256997,1796.9,1796.8,1.81371272]
[1680540725150,1.16745102,1797.0,1796.8,1.81371272]
[1680540727155,1.16745102,1796.9,1796.8,1.81371272]
[1680540728553,0.87270531,1796.9,1796.8,5.02151272]
[1680540728856,0.58186723,1796.9,1796.8,5.02151272]
[1680540729054,1.45490148,1796.9,1796.8,5.02151272]
[1680540729253,0.87270531,1796.9,1796.8,5.02151272]
[1680540731358,1.16745102,1797.0,1796.8,5.02151272]
[1680540731660,0.87399338,1796.9,1796.8,3.90751272]
[1680540731857,1.16745102,1797.0,1796.8,5.02151272]
[1680540732156,1.16745102,1797.0,1796.9,1.114]
[1680540732954,1.16745102,1797.0,1796.9,2.06981562]
[1680540733557,2.14954553,1797.0,1796.9,0.95581562]
[1680540733756,3.26354553,1797.0,1796.5,2.28175384]
[1680540733956,0.5826484,1796.6,1796.5,1.114]
[1680540734165,0.8739726,1796.6,1796.4,1.16775384]
[1680540734457,1.45655807,1796.5,1796.3,2.27575384]
[1680540735054,0.58258547,1796.5,1796.3,2.27575384]
[1680540735255,1.45655807,1796.5,1796.3,2.27575384]
[1680540735565,0.58258547,1796.4,1796.3,2.27575384]
[1680540735964,0.58258547,1796.4,1796.3,1.108]
[1680540739967,3.79038547,1796.4,1796.3,1.108]
[1680540742070,3.79038547,1796.4,1796.2,1.114]
[1680540743863,0.58258547,1796.4,1796.3,1.114]
[1680540744068,0.58258547,1796.5,1796.3,2.114]
[1680540744668,0.58258547,1796.5,1796.3,1.114]
[1680540746366,0.58258547,1796.4,1796.3,1.114]
[1680540746666,1.45655807,1796.5,1796.3,1.114]
[1680540747971,0.58258547,1796.6,1796.4,2.54334153]
[1680540748168,0.58258547,1796.6,1796.5,1.114]
[1680540754172,0.58258547,1796.7,1796.5,2.223]
[1680540754472,0.58258547,1796.8,1796.6,1.108]
[1680540754674,0.58258547,1796.8,1796.7,2.114]
[1680540755074,0.58258547,1796.8,1796.7,1.114]
[1680540758278,1.45655807,1796.8,1796.7,1.114]
[1680540758480,1.45565878,1796.8,1796.7,1.114]
[1680540760276,0.8739726,1796.8,1796.7,1.114]
[1680540761585,5.3730968,1796.8,1796.5,1.114]
[1680540761784,4.66191842,1796.6,1796.5,1.114]
[1680540761982,4.08027105,1796.6,1796.4,0.42934153]
[1680540762187,0.58155431,1796.5,1796.4,0.42934153]
[1680540762390,0.58155431,1796.5,1796.3,2.66698868]
[1680540762887,0.58155431,1796.5,1796.4,0.53344379]
[1680540763088,0.58155431,1796.5,1796.3,1.66698868]
[1680540764481,0.58155431,1796.5,1796.3,1.113]
[1680540765994,0.58155431,1796.5,1796.2,1.0]
[1680540765995,0.58155431,1796.5,1796.4,1.114]